Cogmind - Beta 10.2 @@@ ROGUE MODE // 2020.11.04 @ 15:31:37 // Halloween2020/ForbiddenLore Player: blelm Result: Destroyed by B-99 Colossus with Multirail Performance ------------- Evolutions (9) 4500 Regions Visited (22) 4400 Robots Destroyed (429) 2145 Value Destroyed (20589) 20589 Prototype IDs (41) 820 Alien Tech Used (0) 0 Bonus (7080) 7080 TOTAL SCORE: 39534 Bonus ------- Triggered High Security 500 High Alert Combat Kills 3630 Follower Combat Kills 256 Entered Garrisons 800 Used RIF Installer 2000 Aligned with FarCom 300 Friendly Fire -406 Cogmind --------- Core Integrity 0/1600 Matter 40/300 Energy 99/100 System Corruption 14% Temperature Cool (0) Movement Core (50) Location -1/Access Parts ------- > --- POWER (2) -------- (None) > --- PROPULSION (4) --- (None) > --- UTILITY (14) ----- (None) > --- WEAPON (5) ------- (None) > --- INVENTORY (4) ---- Biometal Heavy Treads KE Penetrator Advanced Remote Datajack Peak State ------------ > --- POWER ------------ Antimatter Reactor Reinforced Antimatter Reactor > --- PROPULSION ------- Biometal Heavy Treads Advanced Heavy Siege Treads > --- UTILITY ---------- Advanced Heat Sink Advanced Heat Sink Coolant Network High-capacity Storage Unit High-capacity Storage Unit Enhanced Optical Array Advanced Target Analyzer Advanced Armor Integrity Analyzer Advanced Phase Shifter Improved Core Shielding Layered Light Armor Plating Improved Focal Shield Advanced Integration Mediator > --- WEAPON ----------- Gamma Rifle Gamma Rifle KE Penetrator Hypervelocity Railgun Linear Accelerator > --- INVENTORY -------- Quantum Reactor Light Quantum Reactor Biometal Heavy Treads Advanced Heat Sink High-capacity Matter Pod Relay Coupler [Grunt] Heavy Neutron Cannon Heavy Neutron Cannon Heavy Neutron Cannon Heavy Neutron Cannon Improved Matter Neutralizer Heavy Machine Gun KE Penetrator KE Penetrator KE Penetrator Gamma Bomb Array Micro-nuke Launcher Advanced Remote Datajack Power Sword [Rating: 183] Favorites ----------- Power Quantum Reactor Engine Improved Deuterium Engine Power Core Light Nuclear Core Reactor Quantum Reactor Propulsion Medium Treads Treads Medium Treads Leg Aluminum Leg Wheel Armored Huge Wheel Hover Unit Cooled Airjet Flight Unit Improved VTOL Module Utility High-capacity Storage Unit Device Improved Kinecellerator Storage High-capacity Storage Unit Processor Enhanced Optical Array Hackware Relay Coupler [NC] Protection Layered Light Armor Plating Weapon KE Penetrator Energy Gun Cooled Pulse Rifle Energy Cannon Improved Matter Neutralizer Ballistic Gun KE Penetrator Ballistic Cannon Enhanced Gauss Cannon Launcher Rocket Launcher Special Weapon Improved Remote Datajack Impact Weapon Thunder Hammer Slashing Weapon Power Sword Piercing Weapon Heavy Pick Special Melee Weapon Datajack Build | -11 -10 -10 -10 -9 -8 -8 -8 -8 -7 -7 -7 -6 -6 -5 -5 -5 -5 -5 -4 -3 -2 -1 ------- Run | Scr Mat Min Exi Min Mat Gar Mat Gar Fac Gar Fac Fac Gar Fac Was Fac Upp Upp Fac Res Res Acc Slots Evolved 18 | . . . . . 4 . . . 2 . . 2 . 2 . . . . 2 2 2 2 Power 1 | . . . . . . . . . . . . . . . . . . . . . 1 . Propulsion 2 | . . . . . 1 . . . . . . 1 . . . . . . . . . . Utility 12 | . . . . . 3 . . . 2 . . 1 . 2 . . . . . 2 1 1 Weapon 3 | . . . . . . . . . . . . . . . . . . . 2 . . 1 Parts Attached 486 | 2 5 2 2 7 14 15 . 7 4 19 54 11 10 2 3 86 7 11 47 34 35 109 Power 25 | . 1 1 . . 1 . . 1 . 1 4 . . . . 7 . . 2 . 3 4 Engine 2 | . 1 . . . 1 . . . . . . . . . . . . . . . . . Core 15 | . . 1 . . . . . 1 . 1 4 . . . . 7 . . 1 . . . Reactor 8 | . . . . . . . . . . . . . . . . . . . 1 . 3 4 Propulsion 55 | 2 1 . . 2 3 1 . 2 . 2 7 8 1 . . 10 . . 5 1 2 8 Treads 44 | 1 1 . . 1 3 1 . 2 . 2 4 5 1 . . 8 . . 4 1 2 8 Leg . | . . . . . . . . . . . . . . . . . . . . . . . Wheel 8 | 1 . . . 1 . . . . . . 2 1 . . . 2 . . 1 . . . Hover 1 | . . . . . . . . . . . 1 . . . . . . . . . . . Flight 2 | . . . . . . . . . . . . 2 . . . . . . . . . . Utility 178 | . 2 . 2 . 6 2 . 1 4 7 18 2 3 1 2 37 5 5 22 15 11 33 Device 75 | . . . . . 1 . . . . 2 . 1 . . 1 18 2 4 13 8 6 19 Storage 14 | . 2 . 2 . . 1 . . . . 4 . . . . 1 . . 1 . 2 1 Processor 9 | . . . . . . . . . . . . . . . . . 2 . 1 2 . 4 Hackware 12 | . . . . . . . . . 1 . . 1 . . 1 2 . . 2 1 1 3 Protection 68 | . . . . . 5 1 . 1 3 5 14 . 3 1 . 16 1 1 5 4 2 6 Artifact . | . . . . . . . . . . . . . . . . . . . . . . . Weapon 228 | . 1 1 . 5 4 12 . 3 . 9 25 1 6 1 1 32 2 6 18 18 19 64 Energy Gun 8 | . . . . . 1 . . . . 1 3 . 1 . . . . . . . . 2 Energy Cannon 17 | . . . . . . . . . . . . . . . . . . . . . . 17 Ballistic Gun 100 | . 1 . . 3 2 5 . 2 . 3 6 1 2 . . 14 1 3 10 7 11 29 Ballistic Cannon 17 | . . . . . . . . . . 2 5 . 1 . . 3 . . 1 . . 5 Launcher 25 | . . 1 . 1 1 6 . 1 . 3 2 . 2 . . . 1 2 . 1 . 4 Special Weapon 19 | . . . . . . . . . . . 1 . . . 1 1 . 1 2 6 3 4 Impact Weapon 1 | . . . . . . . . . . . . . . . . 1 . . . . . . Slashing Weapon 28 | . . . . 1 . 1 . . . . 7 . . 1 . 1 . . 5 4 5 3 Piercing Weapon 12 | . . . . . . . . . . . . . . . . 12 . . . . . . Special Melee Weapon 1 | . . . . . . . . . . . 1 . . . . . . . . . . . Unidentified Prototypes 15 | . . . . . . . . . . . 3 2 . . . 1 . . 2 . . 7 Parts Lost 105 | . 2 1 . 4 3 2 . 5 . 7 4 . 5 . . 9 . 2 6 2 10 43 Power 8 | . . . . . 1 . . . . 1 1 . . . . . . . . . 2 3 Propulsion 18 | . 1 . . 2 . 1 . 2 . 2 . . 1 . . 1 . . 1 . . 7 Utility 49 | . . . . . 1 1 . 1 . 3 3 . 3 . . 6 . 2 4 2 5 18 Weapon 30 | . 1 1 . 2 1 . . 2 . 1 . . 1 . . 2 . . 1 . 3 15 Highest Loss Streak 13 | . 1 1 . 4 2 1 . 5 . 7 1 . 5 . . 3 . 1 3 1 3 13 Average Slot Usage (%) 89 | . 96 93 100 95 94 99 100 99 100 99 92 93 93 82 93 81 81 81 83 88 85 87 Engine 1 | . 14 3 . . 4 9 9 7 . . . . . . . . . . . . . . Core 3 | . . 10 14 14 4 . . 1 7 7 6 6 6 5 5 4 5 5 2 . . . Reactor 2 | . . . . . . . . . . . . . . . . . . . 2 4 8 7 Treads 12 | . 14 14 14 16 26 27 27 27 23 22 9 12 13 11 11 7 5 5 5 14 13 7 Wheel 3 | . 14 14 14 7 . . . . . . 6 6 6 5 5 4 5 5 4 . . . Device 9 | . . . . . 5 . . . . 4 2 4 2 . 4 8 13 10 14 23 17 20 Storage 17 | . 24 28 28 28 18 20 27 27 23 23 28 26 26 23 23 15 11 11 10 9 7 8 Processor 4 | . . . . . . . . . . . . . . . . . 8 11 10 9 9 11 Hackware 3 | . . . . . . . . . 6 . . 6 6 5 11 9 5 3 1 3 4 7 Protection 11 | . . . . . 16 24 18 18 23 25 21 14 16 17 17 14 11 12 9 2 4 3 Ballistic Gun 10 | . 28 17 14 17 13 14 18 17 15 9 3 4 4 . . 5 3 4 14 11 14 14 Ballistic Cannon 1 | . . . . . . . . . . 3 2 . 3 . . 1 5 5 1 . . 2 Slashing Weapon 1 | . . . . . . 1 . . . . 4 6 . 1 5 . . . 4 3 1 . Naked Turns 10 | . . . . . . . . . . . . . . . . . . . . . . 10 Heaviest Build 173 | 13 41 43 75 77 99 112 112 112 106 111 128 125 129 124 123 122 84 82 98 105 137 173 Greatest Support 155 | 20 20 16 16 40 84 84 84 84 74 74 66 30 51 28 28 150 75 28 150 145 150 155 Greatest Overweight (x) 4 | . 2 2 4 4 4 1 1 1 1 2 4 4 4 4 4 4 2 2 3 . . 2 Average Overweight (x) 1 | . 1 2 3 2 . 1 1 1 1 1 3 4 3 4 4 2 1 2 2 . . . Largest Inventory Capacity 40 | 6 16 16 20 20 20 26 26 26 26 26 32 32 32 32 32 40 32 32 32 32 32 20 Average Capacity 27 | 6 13 16 18 20 20 21 26 26 26 26 31 32 32 32 32 37 32 32 32 32 31 19 Most Carried 40 | 6 6 7 11 17 20 24 24 25 24 26 32 32 32 28 31 40 32 32 32 32 31 20 Average Carried 25 | 3 4 6 8 12 18 20 24 23 23 24 30 30 29 27 28 34 31 31 30 29 27 18 Final Capacity 32 | 6 16 16 20 20 20 26 26 26 26 26 32 32 32 32 32 32 32 32 32 32 20 4 Final Carried 32 | 3 6 6 11 16 20 24 24 25 23 26 32 32 28 28 31 32 32 31 31 32 19 4 Class Distribution -------------------- 49% | Bothacker-Mutant 26% | Hauler-Mutant 5% | Scavenger-Mutant 5% | Scavenger-Gunner 5% | Bothacker-Gunner 3% | Mutant Dominant Class ---------------- Mutant | -10/Materials Mutant | -10/Mines Hauler-Mutant | -10/Exiles Hauler-Mutant | -9/Mines Hauler-Mutant | -8/Materials Hauler-Mutant | -8/Garrison Hauler-Mutant | -8/Materials Hauler-Mutant | -8/Garrison Hauler-Mutant | -7/Factory Hauler-Mutant | -7/Garrison Bothacker-Mutant | -7/Factory Bothacker-Mutant | -6/Factory Bothacker-Mutant | -6/Garrison Bothacker-Mutant | -5/Factory Bothacker-Mutant | -5/Waste Bothacker-Mutant | -5/Factory Bothacker-Mutant | -5/Upper Caves Bothacker-Mutant | -5/Upper Caves Bothacker-Mutant | -4/Factory Bothacker-Mutant | -3/Research Bothacker-Gunner | -2/Research Scavenger-Mutant | -1/Access Resources | -11 -10 -10 -10 -9 -8 -8 -8 -8 -7 -7 -7 -6 -6 -5 -5 -5 -5 -5 -4 -3 -2 -1 ----------- Run | Scr Mat Min Exi Min Mat Gar Mat Gar Fac Gar Fac Fac Gar Fac Was Fac Upp Upp Fac Res Res Acc Matter Collected 15519 | 232 407 76 60 72 347 598 . 366 168 548 1155 154 550 . . 2377 112 378 1228 924 1436 4331 Remotely . | . . . . . . . . . . . . . . . . . . . . . . . Salvage Created 22291 | 81 806 156 . 123 1077 475 . 366 44 482 1329 . 369 . . 3038 83 502 1386 862 2761 8351 Parts 1113 | 4 47 12 . 17 62 26 . 14 3 23 60 . 11 . . 182 7 19 70 55 183 318 Haulers Intercepted 19 | . 1 . . . 3 . . . . . 2 . . . . 4 . . 2 . . 7 Recyclers Shooed 21 | 1 2 . . . . . . . . . 2 1 . . . 8 . . 1 3 . 3 Parts Field Recycled 9 | . . . . . . . . . . . . . . . . . . . . . . 9 Retrieved Matter 38 | . . . . . . . . . . . . . . . . . . . . . . 38 Parts Self-Destructed 35 | . . . . . . . . . . . . . . . . . 8 27 . . . . Prevented . | . . . . . . . . . . . . . . . . . . . . . . . Kills | -11 -10 -10 -10 -9 -8 -8 -8 -8 -7 -7 -7 -6 -6 -5 -5 -5 -5 -5 -4 -3 -2 -1 ------- Run | Scr Mat Min Exi Min Mat Gar Mat Gar Fac Gar Fac Fac Gar Fac Was Fac Upp Upp Fac Res Res Acc Combat Hostiles Destroyed 302 | . 16 2 . 6 16 21 . 8 1 18 17 . 10 . . 31 5 15 11 8 25 92 Melee 3 | . . . . . . . . . . . 1 . . . . 2 . . . . . . Guns 189 | . 16 2 . . 13 7 . 6 1 6 5 . 3 . . 21 . 3 9 8 25 64 Cannons 40 | . . . . . . . . . . 4 6 . 1 . . 8 1 5 1 . . 14 AOE 70 | . . . . 6 3 14 . 2 . 8 5 . 6 . . . 4 7 1 . . 14 Classes Destroyed 18 | 1 7 . . . 2 1 . . 1 1 1 . 1 . . 2 . . . . . 1 Worker 23 | . 1 . . . 2 . . . . . 1 . . . . 5 . . . . 4 10 Builder 26 | . 2 . . 1 1 . . . . . 2 . . . . 3 . . 9 . 3 5 Tunneler 3 | . . . . . . . . . . . . . . . . 2 . . . . . 1 Hauler 19 | . 1 . . . 3 . . . . . 2 . . . . 4 . . 2 . . 7 Recycler 34 | 1 1 1 . 1 1 . . . . . 8 . . . . 5 . . 3 1 4 8 Carrier 3 | . . . . . . . . . . . . . . . . 1 . . . . . 2 Mechanic 2 | . . . . . . . . . . . 1 . . . . . . . . 1 . . Operator 3 | . 1 . . . . . . . . . 1 . . . . . . . 1 . . . Watcher 13 | . 3 . . . 3 . . . . . 2 . . . . . . . 1 1 1 2 Swarmer 50 | . 6 . . 6 3 6 . . . 6 5 . . . . 4 4 5 . . . 5 Grunt 112 | . 10 2 . . 8 11 . 4 . 8 4 . 8 . . 2 . 5 2 . 1 47 Brawler 6 | . . . . . . 1 . 1 . . 1 . . . . . . 1 . . . 2 Duelist 10 | . . . . . . . . . . 1 . . . . . 1 . 2 . . . 6 Protector 4 | . . . . . . . . . . . . . . . . . . . . . . 4 Sentry 22 | . . . . . 4 2 . 2 . 2 1 . 1 . . 3 1 . 1 2 2 1 Hunter 27 | . . . . . 1 1 . 1 . 1 . . . . . 6 . . 4 . 6 7 Programmer 70 | . . . . . . . . . 1 . 6 . . . . 15 . 2 4 6 17 19 Behemoth 2 | . . . . . . . . . . . . . 1 . . . . . . . . 1 Best Kill Streak 16 | 1 5 1 . 4 3 5 . 2 1 7 4 . 5 . . 5 4 5 5 3 6 16 Combat Bots Only 11 | . 4 1 . 4 3 5 . 2 1 7 3 . 5 . . 3 4 5 2 3 4 11 Max Kills in Single Turn 5 | 1 2 1 . 3 2 3 . 1 1 2 3 . 2 . . 2 2 3 4 1 2 5 Gunslinging 1 | . . . . . . . . . . . . . . . . . . . . . . 1 Exploded 3 | . . . . 3 2 3 . 1 . 2 2 . 2 . . . 2 3 1 . . 3 Melee 1 | . . . . . . . . . . . 1 . . . . 1 . . . . . . Uniques/NPCs Destroyed . | . . . . . . . . . . . . . . . . . . . . . . . Combat | -11 -10 -10 -10 -9 -8 -8 -8 -8 -7 -7 -7 -6 -6 -5 -5 -5 -5 -5 -4 -3 -2 -1 -------- Run | Scr Mat Min Exi Min Mat Gar Mat Gar Fac Gar Fac Fac Gar Fac Was Fac Upp Upp Fac Res Res Acc Damage Taken 30087 | . 687 165 . 425 527 923 . 641 35 1100 1238 . 2045 . . 3813 104 693 1717 991 3093 11890 Core 3343 | . 163 26 . 36 15 69 . 63 . 103 156 . 197 . . 454 . 21 143 115 170 1612 Absorbed by Shields . | . . . . . . . . . . . . . . . . . . . . . . . Reduced by Siege Mode 2436 | . . . . . . . . . . . . . . . . 306 . 48 263 48 409 1362 Core Remaining (%) 71 | 100 . . . 10 . . . 73 . . 63 . 76 . . . . 52 87 91 88 . Volleys Fired 969 | 2 65 15 . 13 58 68 . 35 3 46 61 . 44 . 6 121 5 24 47 31 73 252 Largest 5 | 2 2 2 . 2 2 2 . 2 2 2 2 . 2 . 1 2 2 2 4 4 4 5 Hottest 440 | 40 40 40 . 40 83 51 . 51 51 79 76 . 76 . 30 92 90 90 158 134 141 440 Shots Fired 2413 | 4 130 20 . 14 114 96 . 56 6 68 104 . 75 . 6 221 6 42 141 107 280 923 Gun 1966 | 4 130 20 . 10 112 70 . 53 6 36 63 . 41 . . 184 1 18 117 104 278 719 Cannon 327 | . . . . . . . . . . 14 35 . 25 . . 36 1 18 18 . . 180 Launcher 88 | . . . . 4 2 26 . 3 . 18 6 . 9 . . . 4 5 . . . 11 Special 32 | . . . . . . . . . . . . . . . 6 1 . 1 6 3 2 13 Kinetic 2134 | 4 130 20 . 10 77 70 . 53 6 44 88 . 57 . . 220 2 36 135 104 278 800 Thermal 97 | . . . . . . . . . . 6 10 . 9 . . . . . . . . 72 Explosive 84 | . . . . 4 2 26 . 3 . 18 6 . 9 . . . 4 5 . . . 7 Electromagnetic 66 | . . . . . 35 . . . . . . . . . . . . . . . . 31 Robot Hit Streak 57 | 1 13 4 . 2 11 17 . 10 13 14 8 . 13 . 2 27 3 10 30 24 38 57 Robot Miss Streak 4 | 1 4 2 . 4 3 2 . 4 . 3 4 . 3 . 1 3 . 2 1 2 3 2 Penetration Max 3 | . . . . . 1 . . . . . 1 . 1 . . 3 . 1 1 1 2 1 Secondary Targets 28 | . 4 . . . . . . . . . . . . . . 1 . . . 3 7 13 Max Gunslinging Chain 1 | . 1 . . . . . . . . . . . . . . 1 . . . 1 1 1 Shots Hit Robots 1723 | 2 82 14 . 5 77 60 . 40 6 37 86 2 45 . 3 192 2 27 115 77 209 642 Core Hits 900 | 2 37 7 . 8 42 45 . 15 2 45 49 . 24 . . 91 5 23 50 28 94 333 Critical Hits 227 | . . 1 . . 4 . . 1 . 1 1 . 4 . . 62 1 6 18 7 42 79 Critical Kills 73 | . . 1 . . . . . . . 1 . . 1 . . 22 1 2 5 3 10 27 Critical Parts Destroyed 141 | . . . . . 4 . . 1 . . 1 . 1 . . 36 . 3 13 4 31 47 Melee Attacks 232 | . . . . 2 . 2 . . . . 58 6 . . . 82 . . 38 21 15 8 Impact . | . . . . . . . . . . . . . . . . . . . . . . . Slashing 157 | . . . . 2 . 2 . . . . 58 6 . . . 7 . . 38 21 15 8 Piercing 75 | . . . . . . . . . . . . . . . . 75 . . . . . . Sneak Attacks 39 | . . . . . . . . . . . 11 2 . . . 14 . . 6 3 2 1 Combat Hostiles . | . . . . . . . . . . . . . . . . . . . . . . . Follow-up Attacks . | . . . . . . . . . . . . . . . . . . . . . . . Damage Inflicted 56154 | 23 1120 213 . 454 2112 2549 . 977 144 2014 4264 219 1885 . . 4466 519 1970 4480 2347 4878 21520 Guns 31880 | 23 1109 200 . 49 1819 967 . 730 144 304 772 . 666 . . 1617 . 515 2258 1937 4623 14147 Cannons 7769 | . . . . . . . . . . 283 705 . 537 . . 985 39 663 446 . . 4111 Explosions 10667 | . . . . 348 224 1582 . 247 . 1427 986 . 682 . . 375 480 792 717 . . 2807 Melee 5247 | . . . . 23 . . . . . . 1767 219 . . . 1487 . . 1003 398 241 109 Ramming 591 | . 11 13 . 34 69 . . . . . 34 . . . . 2 . . 56 12 14 346 Kinetic 37121 | 23 1109 200 . 49 1176 967 . 730 144 541 1336 . 1054 . . 2602 39 1178 2704 1937 4623 16709 Thermal 2083 | . . . . . . . . . . 46 141 . 149 . . . . . 584 . . 1163 Explosive 9206 | . . . . 348 224 1582 . 247 . 1427 986 . 682 . . . 480 792 133 . . 2305 Electromagnetic 1906 | . . . . . 643 . . . . . . . . . . 375 . . . . . 888 Impact . | . . . . . . . . . . . . . . . . . . . . . . . Slashing 3760 | . . . . 23 . . . . . . 1767 219 . . . . . . 1003 398 241 109 Piercing 1487 | . . . . . . . . . . . . . . . . 1487 . . . . . . Highest Corruption 14 | . . . . . . . . . . . 7 . . . . 5 . 2 1 5 1 14 Average Corruption 4 | . . . . . . . . . . . 3 . . . . 2 . 1 1 3 1 9 Corruption Purged 21 | . . . . . . . . . . . . . . . . 7 . 4 . 7 1 2 Effects 286 | . . . . . . . . . . . 65 . . . . 53 . . 3 16 . 149 Message Errors 62 | . . . . . . . . . . . 17 . . . . 19 . . 1 4 . 21 Matter Fused 42 | . . . . . . . . . . . 12 . . . . 5 . . . 5 . 20 Heat Flow Errors 28 | . . . . . . . . . . . 9 . . . . 7 . . . 2 . 10 Energy Discharges 26 | . . . . . . . . . . . 9 . . . . 5 . . . 2 . 10 Parts Rejected 3 | . . . . . . . . . . . 2 . . . . . . . . . . 1 Data Loss (minor) 33 | . . . . . . . . . . . 10 . . . . 9 . . 1 1 . 12 Data Loss (major) 9 | . . . . . . . . . . . 1 . . . . . . . . . . 8 Misfires 8 | . . . . . . . . . . . 1 . . . . 1 . . . . . 6 Alerts 2 | . . . . . . . . . . . . . . . . . . . . . . 2 Misdirections 8 | . . . . . . . . . . . . . . . . . . . . . . 8 Targeting Errors 55 | . . . . . . . . . . . 4 . . . . 6 . . 1 2 . 42 Weapon Failures 10 | . . . . . . . . . . . . . . . . 1 . . . . . 9 Overload Shots . | . . . . . . . . . . . . . . . . . . . . . . . Overflow Damage 1581 | . . . . . . 16 . . . 7 631 77 . . . 78 97 98 142 197 . 238 Projectiles 211 | . . . . . . . . . . . 51 . . . . 26 . 30 8 . . 96 Explosions 300 | . . . . . . 16 . . . 7 25 . . . . 4 97 68 15 . . 68 Melee 1070 | . . . . . . . . . . . 555 77 . . . 48 . . 119 197 . 74 Knockbacks 50 | . . . . 1 . . . . . 2 5 . . . . 14 . 2 2 . . 24 Impact 2 | . . . . 1 . . . . . . . . . . . . . . . . . 1 Kinetic 41 | . . . . . . . . . . 2 5 . . . . 11 . 2 2 . . 19 Secondary 7 | . . . . . . . . . . . . . . . . 3 . . . . . 4 Self-Inflicted Damage 529 | . 1 6 . . . 77 . . . 46 43 . 57 . . 41 . 45 92 . . 121 Shots 19 | . . . . . . 4 . . . 1 1 . 2 . . 2 . 1 2 . . 6 Rammed 48 | . 2 2 . 2 3 . . . . . 3 . . . . 2 . . 13 2 1 18 Targets Rammed 52 | . 2 2 . 3 4 . . . . . 3 . . . . 2 . . 13 2 1 20 Kicked . | . . . . . . . . . . . . . . . . . . . . . . . Crushed 4 | . . . . 1 1 . . . . . . . . . . . . . . . . 2 Highest Temperature 602 | . 5 2 . 4 351 264 . 99 36 383 288 . 379 . 14 602 . 186 576 90 76 551 Average Temperature 91 | . 2 2 . 3 72 88 . 29 18 109 80 . 118 . 14 127 . 68 187 22 24 80 Received Heat Transfer 3492 | . 222 90 . . 198 369 . 108 . 297 75 . 435 . . 198 . 66 156 . 45 1233 Effects 45 | . . . . . 2 . . . . 7 1 . 2 . . 7 . . 14 . . 12 Shutdowns 8 | . . . . . 1 . . . . . . . 1 . . 1 . . 2 . . 3 Energy Bleed 7 | . . . . . . . . . . 2 . . 1 . . 2 . . 1 . . 1 Interference 17 | . . . . . . . . . . 5 1 . . . . 1 . . 5 . . 5 Matter Decay 2 | . . . . . . . . . . . . . . . . 1 . . 1 . . . Short Circuit 3 | . . . . . . . . . . . . . . . . . . . 2 . . 1 Damage (minor) 6 | . . . . . 1 . . . . . . . . . . 1 . . 3 . . 1 Damage (core) 2 | . . . . . . . . . . . . . . . . 1 . . . . . 1 Siege Activations 77 | . . . . . . . . . . . . . . . . 11 3 3 5 5 12 38 Total Turns 1733 | . . . . . . . . . . . . . . . . 362 36 66 108 107 301 753 Longest Duration 94 | . . . . . . . . . . . . . . . . 94 23 42 59 40 77 60 Robots Corrupted . | . . . . . . . . . . . . . . . . . . . . . . . Combat Hostiles . | . . . . . . . . . . . . . . . . . . . . . . . Parts Fried 7 | . . . . . 2 . . . . . . . . . . 2 . . . . . 3 Impact Corruptions 4 | . . . . . . . . . . . . . . . . . . . . . . 4 Robots Melted . | . . . . . . . . . . . . . . . . . . . . . . . Combat Hostiles . | . . . . . . . . . . . . . . . . . . . . . . . Parts Melted 4 | . . . . . . . . . . . . . . . . 2 . . 1 1 . . Heat Transferred 1722 | . . . . . . . . . . 111 259 . 296 . . . . . 400 . . 656 Parts Sabotaged 8 | . . . . . . . . . . . . . . . . . . . . . . 8 Parts Stolen . | . . . . . . . . . . . . . . . . . . . . . . . Parts Stripped . | . . . . . . . . . . . . . . . . . . . . . . . Power Chain Reactions 1 | . . . . . . . . . . . . . . . . . . . . . . 1 Missiles Intercepted . | . . . . . . . . . . . . . . . . . . . . . . . Alert | -11 -10 -10 -10 -9 -8 -8 -8 -8 -7 -7 -7 -6 -6 -5 -5 -5 -5 -5 -4 -3 -2 -1 ------- Run | Scr Mat Min Exi Min Mat Gar Mat Gar Fac Gar Fac Fac Gar Fac Was Fac Upp Upp Fac Res Res Acc Peak Influence 1848 | 5 342 163 . 100 296 943 459 555 321 637 448 221 274 143 50 1013 . . 399 205 348 1848 Initial 459 | . 3 103 . . . 13 459 298 291 84 333 219 16 143 50 35 . . 258 159 50 199 Average 329 | 2 195 148 . 7 60 607 459 425 282 378 216 178 99 143 50 291 . . 161 80 183 821 Maximum Alert Level 5 | . 1 . . . 1 3 2 2 1 2 2 1 1 . . 3 . . 1 1 1 5 Low Security (%) 46 | 100 56 100 . 100 95 9 . . 7 21 42 20 80 100 100 49 . . 49 99 58 11 Level 1 26 | . 43 . . . 4 16 . 30 92 16 52 79 19 . . 18 . . 50 . 41 16 Level 2 12 | . . . . . . 26 100 69 . 61 4 . . . . 25 . . . . . 14 Level 3 8 | . . . . . . 47 . . . . . . . . . 7 . . . . . 23 Level 4 4 | . . . . . . . . . . . . . . . . . . . . . . 23 Level 5 1 | . . . . . . . . . . . . . . . . . . . . . . 6 High Security . | . . . . . . . . . . . . . . . . . . . . . . 3 Max Security . | . . . . . . . . . . . . . . . . . . . . . . . Squads Dispatched 81 | . 2 . . . 3 . . . 1 . 9 . . . . 18 . . 6 5 7 30 Investigation 7 | . . . . . . . . . . . . . . . . 5 . . . 1 1 . Extermination 30 | . . . . . . . . . 1 . 5 . . . . 7 . . 2 3 5 7 Reinforcement 27 | . 2 . . . 3 . . . . . 3 . . . . 4 . . 4 1 1 9 Assault 15 | . . . . . . . . . . . 1 . . . . 2 . . . . . 12 Garrison 2 | . . . . . . . . . . . . . . . . . . . . . . 2 Intercept . | . . . . . . . . . . . . . . . . . . . . . . . Construction Impeded 12 | . . . . . 2 . . . . . . . . . . 3 . . 2 . 1 4 Haulers Reinforced 4 | . . . . . . . . . . . 1 . . . . . . . 1 . . 2 Stealth | -11 -10 -10 -10 -9 -8 -8 -8 -8 -7 -7 -7 -6 -6 -5 -5 -5 -5 -5 -4 -3 -2 -1 --------- Run | Scr Mat Min Exi Min Mat Gar Mat Gar Fac Gar Fac Fac Gar Fac Was Fac Upp Upp Fac Res Res Acc Distress Signals 17 | . 2 . . . 5 . . . . . . . . . . 4 . . 1 . 3 2 Communications Jammed 26 | . . . . . . . . . . . . . . . . . . . . 3 . 23 Distress Signals 24 | . . . . . . . . . . . . . . . . . . . . 3 . 21 Times Spotted 447 | . 26 3 . 5 30 21 . 11 1 18 33 1 12 . 6 55 7 21 20 16 34 127 Peak Tracking Total 15 | . 6 2 . 4 4 6 . 3 1 9 4 1 4 . 4 6 4 9 3 4 4 15 Tactical Retreats 25 | . . 1 . . 4 2 . 1 . 2 1 . 1 . . 3 . 2 2 . 1 5 Traps | -11 -10 -10 -10 -9 -8 -8 -8 -8 -7 -7 -7 -6 -6 -5 -5 -5 -5 -5 -4 -3 -2 -1 ------- Run | Scr Mat Min Exi Min Mat Gar Mat Gar Fac Gar Fac Fac Gar Fac Was Fac Upp Upp Fac Res Res Acc Traps Triggered 36 | . . . . 1 . 4 . 5 . 4 5 . 1 1 . 8 . . 1 3 1 2 Indirectly . | . . . . . . . . . . . . . . . . . . . . . . . Trap Hack Attempts . | . . . . . . . . . . . . . . . . . . . . . . . Triggered . | . . . . . . . . . . . . . . . . . . . . . . . Disarmed . | . . . . . . . . . . . . . . . . . . . . . . . Reprogrammed . | . . . . . . . . . . . . . . . . . . . . . . . Reused . | . . . . . . . . . . . . . . . . . . . . . . . Traps Extracted . | . . . . . . . . . . . . . . . . . . . . . . . Installed . | . . . . . . . . . . . . . . . . . . . . . . . Triggered 2 | . . . . . 1 . . . . . . . . . . . 1 . . . . . Machines | -11 -10 -10 -10 -9 -8 -8 -8 -8 -7 -7 -7 -6 -6 -5 -5 -5 -5 -5 -4 -3 -2 -1 ---------- Run | Scr Mat Min Exi Min Mat Gar Mat Gar Fac Gar Fac Fac Gar Fac Was Fac Upp Upp Fac Res Res Acc Machines Disabled 41 | . . . . . 1 3 . 2 . 2 4 . 1 . . 7 . . 12 . 1 8 Max in Single Turn 6 | . . . . . 1 1 . 1 . 1 4 . 1 . . 2 . . 6 . 1 2 Garrison Access 13 | . . . . . . . . . . . 3 . . . . 2 . . 2 . 1 5 Garrison Relay 8 | . . . . . . 3 . 2 . 2 . . 1 . . . . . . . . . Machines Sabotaged . | . . . . . . . . . . . . . . . . . . . . . . . Garrisons Compromised . | . . . . . . . . . . . . . . . . . . . . . . . Overloaded Fab Kills . | . . . . . . . . . . . . . . . . . . . . . . . Fab Network Shutdowns . | . . . . . . . . . . . . . . . . . . . . . . . Hacking | -11 -10 -10 -10 -9 -8 -8 -8 -8 -7 -7 -7 -6 -6 -5 -5 -5 -5 -5 -4 -3 -2 -1 --------- Run | Scr Mat Min Exi Min Mat Gar Mat Gar Fac Gar Fac Fac Gar Fac Was Fac Upp Upp Fac Res Res Acc Machines Accessed 71 | . 3 . 1 1 5 . 1 . 2 . 13 4 . . . 17 2 . 7 1 1 13 Terminals 30 | . 3 . . . 3 . . . . . 6 . . . . 9 . . 2 1 . 6 Fabricators 4 | . . . . . . . . . . . 1 . . . . 2 . . 1 . . . Repair Stations 7 | . . . . . 1 . . . . . 1 2 . . . 1 . . 1 . . 1 Recycling Units 5 | . . . . . . . . . . . 1 1 . . . 1 . . 1 . . 1 Scanalyzers 5 | . . . . . . . . . 1 . 2 . . . . 2 . . . . . . Garrison Access 16 | . . . . . 1 . 1 . 1 . 2 1 . . . 2 . . 2 . 1 5 Total Hacks 156 | . 7 . 1 1 17 . 1 . 3 . 31 7 . . . 40 9 . 15 2 1 21 Successful 88 | . 4 . 1 1 8 . 1 . 3 . 15 3 . . . 24 9 . 5 1 1 12 Failed 68 | . 3 . . . 9 . . . . . 16 4 . . . 16 . . 10 1 . 9 Catastrophic 12 | . . . . . . . . . . . 2 1 . . . 3 . . 2 1 . 3 Database Lockouts . | . . . . . . . . . . . . . . . . . . . . . . . Manual 33 | . 2 . 1 . 7 . . . . . 5 . . . . 8 . . 1 1 . 8 Terminals 70 | . 7 . . . 13 . . . . . 13 . . . . 19 . . 3 2 . 13 Fabricators 13 | . . . . . . . . . . . 3 . . . . 7 . . 3 . . . Repair Stations 16 | . . . . . 2 . . . . . 2 5 . . . 2 . . 3 . . 2 Recycling Units 11 | . . . . . . . . . . . 3 1 . . . 2 . . 4 . . 1 Scanalyzers 18 | . . . . . . . . . 2 . 8 . . . . 8 . . . . . . Garrison Access 17 | . . . . . 2 . 1 . 1 . 2 1 . . . 2 . . 2 . 1 5 Terminal Hacks 27 | . 4 . 1 1 4 . . . . . 1 . . . . 4 9 . . . . 3 Record 8 | . . . . . . . . . . . . . . . . . 8 . . . . . Robot Analysis 4 | . 2 . . . 2 . . . . . . . . . . . . . . . . . Open Door 2 | . . . . 1 . . . . . . . . . . . . 1 . . . . . Branch Access Points 3 | . 1 . . . . . . . . . . . . . . 1 . . . . . 1 Scanalyzer Index 1 | . . . . . . . . . . . . . . . . 1 . . . . . . Unreport Threat 2 | . . . . . 1 . . . . . . . . . . . . . . . . 1 Locate Traps 3 | . 1 . . . 1 . . . . . . . . . . 1 . . . . . . Hauler Manifests 2 | . . . . . . . . . . . 1 . . . . 1 . . . . . . Zone Layout 1 | . . . . . . . . . . . . . . . . . . . . . . 1 EX-Prototype ID Bank 1 | . . . 1 . . . . . . . . . . . . . . . . . . . Fabricator Hacks 6 | . . . . . . . . . . . 1 . . . . 4 . . 1 . . . Load Schematic 5 | . . . . . . . . . . . 1 . . . . 3 . . 1 . . . Build 1 | . . . . . . . . . . . . . . . . 1 . . . . . . Repair Station Hacks 11 | . . . . . 2 . . . . . 2 2 . . . 2 . . 1 . . 2 Scan Component 6 | . . . . . 1 . . . . . 1 1 . . . 1 . . 1 . . 1 Repair 5 | . . . . . 1 . . . . . 1 1 . . . 1 . . . . . 1 Recycling Unit Hacks 6 | . . . . . . . . . . . 2 . . . . 2 . . 1 . . 1 Retrieve Matter 3 | . . . . . . . . . . . 1 . . . . 1 . . 1 . . . Retrieve Components 3 | . . . . . . . . . . . 1 . . . . 1 . . . . . 1 Scanalyzer 16 | . . . . . . . . . 2 . 6 . . . . 8 . . . . . . Insert Component 8 | . . . . . . . . . 1 . 3 . . . . 4 . . . . . . Analyze 8 | . . . . . . . . . 1 . 3 . . . . 4 . . . . . . Garrison Access Hacks 16 | . . . . . 1 . 1 . 1 . 2 1 . . . 2 . . 2 . 1 5 Unlock Access 4 | . . . . . 1 . 1 . 1 . . 1 . . . . . . . . . . Seal Access 12 | . . . . . . . . . . . 2 . . . . 2 . . 2 . 1 5 Unauthorized Hacks 6 | . . . . . 1 . . . . . 1 . . . . 2 . . . 1 . 1 Terminals 6 | . . . . . 1 . . . . . 1 . . . . 2 . . . 1 . 1 Botnet 6 | . . . . . 1 . . . . . 1 . . . . 2 . . . 1 . 1 Fabricators . | . . . . . . . . . . . . . . . . . . . . . . . Repair Stations . | . . . . . . . . . . . . . . . . . . . . . . . Recycling Units . | . . . . . . . . . . . . . . . . . . . . . . . Scanalyzers . | . . . . . . . . . . . . . . . . . . . . . . . Garrison Access . | . . . . . . . . . . . . . . . . . . . . . . . Data Cores Recovered . | . . . . . . . . . . . . . . . . . . . . . . . Used . | . . . . . . . . . . . . . . . . . . . . . . . Hacking Detections 49 | . 3 . . . 5 . . . 2 . 9 4 . . . 12 . . 5 1 . 8 Full Trace Events 4 | . . . . . . . . . . . . . . . . 4 . . . . . . Feedback Events 2 | . . . . . . . . . . . . . . . . 2 . . . . . . Corruption 2 | . . . . . . . . . . . . . . . . 2 . . . . . . Feedback Blocked . | . . . . . . . . . . . . . . . . . . . . . . . Robot Schematics Acquired . | . . . . . . . . . . . . . . . . . . . . . . . Robots Built . | . . . . . . . . . . . . . . . . . . . . . . . Matter . | . . . . . . . . . . . . . . . . . . . . . . . Time . | . . . . . . . . . . . . . . . . . . . . . . . Total Robot Build Rating . | . . . . . . . . . . . . . . . . . . . . . . . Part Schematics Acquired 8 | . . . . . . . . . 1 . 3 . . . . 4 . . . . . . Parts Built 2 | . . . . . . . . . . . . . . . . 2 . . . . . . Matter 256 | . . . . . . . . . . . . . . . . 256 . . . . . . Time 64 | . . . . . . . . . . . . . . . . 64 . . . . . . Total Part Build Rating 16 | . . . . . . . . . . . . . . . . 16 . . . . . . Parts Repaired 5 | . . . . . 1 . . . . . 1 1 . . . 1 . . . . . 1 Time 175 | . . . . . 32 . . . . . 32 19 . . . 68 . . . . . 24 Parts Recycled . | . . . . . . . . . . . . . . . . . . . . . . . Recycled Matter . | . . . . . . . . . . . . . . . . . . . . . . . Retrieved Matter 198 | . . . . . . . . . . . 19 . . . . 179 . . . . . . Retrieved Components 30 | . . . . . . . . . . . 10 . . . . 10 . . . . . 10 Parts Scanalyzed 8 | . . . . . . . . . 1 . 3 . . . . 4 . . . . . . Part Schematics Acquired 8 | . . . . . . . . . 1 . 3 . . . . 4 . . . . . . Parts Damaged 1 | . . . . . . . . . . . . . . . . 1 . . . . . . Bothacking | -11 -10 -10 -10 -9 -8 -8 -8 -8 -7 -7 -7 -6 -6 -5 -5 -5 -5 -5 -4 -3 -2 -1 ------------ Run | Scr Mat Min Exi Min Mat Gar Mat Gar Fac Gar Fac Fac Gar Fac Was Fac Upp Upp Fac Res Res Acc Used RIF Installer 4 | . . . . . . 1 . 1 . 1 . . 1 . . . . . . . . . Coupler Efficiency 1 | . . . . . . . . . . 1 . . . . . . . . . . . . Robot Detection 1 | . . . . . . . . 1 . . . . . . . . . . . . . . Autoassimilate 1 | . . . . . . . . . . . . . 1 . . . . . . . . . Robots Hacked 19 | . . . . . . . . . . . . . . . 5 1 . 1 2 2 1 7 Non-combat 6 | . . . . . . . . . . . . . . . . . . . 2 2 . 2 Combat 13 | . . . . . . . . . . . . . . . 5 1 . 1 . . 1 5 Robot Hacks Applied 24 | . . . . . . . . . . . . . . . 6 1 . 1 5 2 1 8 parse_system 2 | . . . . . . . . . . . . . . . 1 . . . 1 . . . purge_threat 5 | . . . . . . . . . . . . . . . . . . . 3 . . 2 block_reporting 3 | . . . . . . . . . . . . . . . . . . . 1 1 . 1 ignore_targets 2 | . . . . . . . . . . . . . . . 2 . . . . . . . overload_power 5 | . . . . . . . . . . . . . . . 3 . . . . . . 2 overwrite_iff 3 | . . . . . . . . . . . . . . . . . . . . . 1 2 streamctrl_high 2 | . . . . . . . . . . . . . . . . 1 . . . . . 1 formatsys_low 1 | . . . . . . . . . . . . . . . . . . . . 1 . . formatsys_high 1 | . . . . . . . . . . . . . . . . . . 1 . . . . Relay Couplers Released 40 | . . . . . . 11 . 8 . 9 4 . 4 . . 4 . . . . . . Machine Destruction 33 | . . . . . . 11 . 8 . 9 1 . 4 . . . . . . . . . Programmers 7 | . . . . . . . . . . . 3 . . . . 4 . . . . . . Attached 7 | . . . . . . . . . 1 . . . . . 1 1 . . 1 1 1 1 Robots Rewired 2 | . . . . . . . . . . . . . . . . . . 2 . . . . Allies Hacked 1 | . . . . . . . . . . . . . . . . 1 . . . . . . Hacks Repelled . | . . . . . . . . . . . . . . . . . . . . . . . Allies | -11 -10 -10 -10 -9 -8 -8 -8 -8 -7 -7 -7 -6 -6 -5 -5 -5 -5 -5 -4 -3 -2 -1 -------- Run | Scr Mat Min Exi Min Mat Gar Mat Gar Fac Gar Fac Fac Gar Fac Was Fac Upp Upp Fac Res Res Acc Total Allies 14 | . . . . . . . . . . . . . . . . 1 2 3 . 4 1 3 Largest Group 4 | . . . . . . . . . . . . . . . . 1 2 2 2 4 1 1 Highest-Rated Group 170 | . . . . . . . . . . . . . . . . 49 56 64 59 170 61 69 Highest-Rated Ally 69 | . . . . . . . . . . . . . . . . 49 31 64 30 46 61 69 Total Orders 1 | . . . . . . . . . . . . . . . . . . . . 1 . . AID 1 | . . . . . . . . . . . . . . . . . . . . 1 . . Ally Attacks 48 | . . . . . . . . . . . . . . . . 2 6 11 6 17 1 5 Total Damage 1284 | . . . . . . . . . . . . . . . . 113 201 248 149 418 31 124 Kills 8 | . . . . . . . . . . . . . . . . . 2 4 . 2 . . Allies Corrupted 1 | . . . . . . . . . . . . . . . . 1 . . . . . . Allies Melted . | . . . . . . . . . . . . . . . . . . . . . . . Intel | -11 -10 -10 -10 -9 -8 -8 -8 -8 -7 -7 -7 -6 -6 -5 -5 -5 -5 -5 -4 -3 -2 -1 ------- Run | Scr Mat Min Exi Min Mat Gar Mat Gar Fac Gar Fac Fac Gar Fac Was Fac Upp Upp Fac Res Res Acc Robot Analysis Total 4 | . 2 . . . 2 . . . . . . . . . . . . . . . . . Derelict Logs Recovered 6 | . . 1 . 1 . . . . . . . . . . . . 2 2 . . . . Drone Launches . | . . . . . . . . . . . . . . . . . . . . . . . Drone Recoveries . | . . . . . . . . . . . . . . . . . . . . . . . Exploration | -11 -10 -10 -10 -9 -8 -8 -8 -8 -7 -7 -7 -6 -6 -5 -5 -5 -5 -5 -4 -3 -2 -1 ------------- Run | Scr Mat Min Exi Min Mat Gar Mat Gar Fac Gar Fac Fac Gar Fac Was Fac Upp Upp Fac Res Res Acc Turns Passed 29527 | 17 601 374 371 1095 1690 1630 27 618 432 948 3968 502 620 49 263 4035 878 1081 1923 1687 1942 4776 Spaces Moved 14824 | 8 303 276 274 481 723 773 15 263 210 415 2342 227 258 33 168 2017 656 794 1041 799 854 1894 Core 21 | . . . . . . . . . . . . . . . . . . . . . . 21 Treads 6972 | . 20 . . 183 696 773 15 263 210 415 305 132 21 . . 266 1 . 146 799 854 1873 Legs 2 | 2 . . . . . . . . . . . . . . . . . . . . . . Wheels 7829 | 6 283 276 274 298 27 . . . . . 2037 95 237 33 168 1751 655 794 895 . . . Hover . | . . . . . . . . . . . . . . . . . . . . . . . Flight . | . . . . . . . . . . . . . . . . . . . . . . . Fastest Speed 50 | 100 100 120 120 140 140 180 180 180 180 180 130 140 140 140 140 120 120 120 120 166 160 50 Average Speed 150 | 105 121 120 134 155 173 180 180 180 180 180 146 198 144 140 140 140 120 120 132 166 161 163 Slowest Speed 240 | 120 200 120 140 180 200 180 180 180 180 200 240 240 200 140 140 230 210 120 210 166 166 220 Overloaded Moves . | . . . . . . . . . . . . . . . . . . . . . . . Propulsion Burnouts . | . . . . . . . . . . . . . . . . . . . . . . . Robots Hopped . | . . . . . . . . . . . . . . . . . . . . . . . Cave-ins Triggered 1 | . . . . . . . . . . . . . . . . . . . . 1 . . Exploration Rate (%) 43 | 2 58 70 66 71 58 75 3 35 5 54 62 5 44 1 77 47 78 80 27 18 20 36 Regions Visited 22 Branch Regions 5 Pre-discovered Areas 2 | . . . . 1 . . . . . . . . . . . . 1 . . . . . Known Exits Taken 10 | . 1 . . . 1 . 1 . 1 . . 1 . . . 1 1 1 . 1 1 . Unknown Exits Taken 6 | 1 . 1 1 1 . . . . . . 1 . . . . . . . 1 . . . Scrap Searched 3 | . . 1 . . . . . . . . . . . . . . 2 . . . . . Spaces Dug 225 | . . . . . . . . . . 2 26 4 . . . 56 . 20 27 18 18 54 Terrain Destroyed 1087 | . . . . 51 24 143 . 14 . 66 112 4 35 . . 90 38 96 128 22 22 242 Melee 143 | . . . . . . . . . . . 24 4 . . . 53 . . 25 18 13 6 Projectile 197 | . . . . . 2 11 . 1 . . 14 . . . . 19 2 12 33 4 9 90 AOE 747 | . . . . 51 22 132 . 13 . 66 74 . 35 . . 18 36 84 70 . . 146 Terrain Rammed . | . . . . . . . . . . . . . . . . . . . . . . . Walls Destroyed . | . . . . . . . . . . . . . . . . . . . . . . . Machines Disabled . | . . . . . . . . . . . . . . . . . . . . . . . Actions | -11 -10 -10 -10 -9 -8 -8 -8 -8 -7 -7 -7 -6 -6 -5 -5 -5 -5 -5 -4 -3 -2 -1 --------- Run | Scr Mat Min Exi Min Mat Gar Mat Gar Fac Gar Fac Fac Gar Fac Was Fac Upp Upp Fac Res Res Acc Total 19804 | 14 405 298 277 808 1052 908 15 351 258 543 2681 271 427 37 192 2829 740 876 1428 1071 1238 3085 Wait 2785 | . 24 2 . 293 213 32 . 30 39 44 117 18 105 . 13 411 65 37 213 157 237 735 Move 14807 | 7 302 275 273 480 723 772 15 262 210 414 2341 227 257 33 167 2016 655 793 1040 798 853 1894 Hop . | . . . . . . . . . . . . . . . . . . . . . . . Pick Up 222 | . 5 1 2 9 23 8 . 6 1 9 20 2 2 . 3 51 4 . 11 12 17 36 Fast Attach 77 | . 2 1 . . 6 1 . 1 . 2 8 3 . . . 10 . 1 5 4 3 30 Attach 133 | 2 2 1 . 3 4 2 . 5 3 7 5 5 5 1 2 20 2 1 11 8 12 32 Detach 38 | . . . . . . . . . 1 2 2 4 . 1 . 8 . . 5 5 3 7 Swap 276 | . 1 . 2 4 4 12 . 1 1 10 41 3 5 1 1 56 5 9 31 22 20 47 Drop 147 | 3 2 1 . 1 17 3 . 1 . 1 25 3 1 . . 40 4 . 6 11 4 24 Fire 969 | 2 65 15 . 13 58 68 . 35 3 46 61 . 44 . 6 121 5 24 47 31 73 252 Melee 232 | . . . . 2 . 2 . . . . 58 6 . . . 82 . . 38 21 15 8 Ram 6 | . 1 2 . . . . . . . . 1 . . . . 1 . . 1 . . . Kick . | . . . . . . . . . . . . . . . . . . . . . . . Crush 46 | . 1 . . 3 4 . . . . . 2 . . . . 1 . . 12 2 1 20 Escape Stasis 54 | . . . . . . 8 . 10 . 8 . . 8 . . 12 . . 8 . . . Rewire 12 | . . . . . . . . . . . . . . 1 . . . 11 . . . . Trap . | . . . . . . . . . . . . . . . . . . . . . . . Miscellaneous . | . . . . . . . . . . . . . . . . . . . . . . . Route ------- -11/Scrapyard -10/Materials (discovered 2 exits: *Min x2) -10/Mines (discovered 2 exits: [*Mat] / *Exi) -10/Exiles -9/Mines (discovered 2 exits: *Mat x2) -8/Materials (discovered 3 exits: *Fac x2 / Gar) -8/Garrison (discovered 3 exits: *Mat x3) -8/Materials -8/Garrison -7/Factory (discovered 2 exits: [*Low] / Gar) -7/Garrison (discovered 2 exits: *Fac x2) -7/Factory (discovered 4 exits: *Fac x2 / [*Low x2]) -6/Factory -6/Garrison -5/Factory -5/Waste -5/Factory (discovered 5 exits: *Fac / *Upp x2 / Ext x2) -5/Upper Caves -5/Upper Caves -4/Factory (discovered 2 exits: *Res / Arm) -3/Research -2/Research -1/Access (discovered 1 exit: Com) History --------- Turn | Location | Event 1 | -11/Scrapyard | Discovered new exit (range 3) 18 | -11/Scrapyard | Entered Materials 301 | -10/Materials | Build established: Mutant 327 | -10/Materials | Core integrity fell below 50% 564 | -10/Materials | Identified exit to Mines 619 | -10/Materials | Entered Mines 675 | -10/Mines | Discovered new exit (range 8) 718 | -10/Mines | Learned Materials stockpile data 880 | -10/Mines | Received a Rocket Launcher from a helpful Derelict 988 | -10/Mines | Deemed a non-threat by the Exiles lab entrance 988 | -10/Mines | Discovered new exit (range 5) 993 | -10/Mines | Entered Exiles 1023 | -10/Exiles | Met 8R-AWN 1044 | -10/Exiles | Met EX-HEX 1149 | -10/Exiles | Met EX-BIN 1169 | -10/Exiles | Aligned with FarCom system 1170 | -10/Exiles | Given EX-Vault access code 1205 | -10/Exiles | Opened EX-Vault 1214 | -10/Exiles | Found Lightpack 2.0 1244 | -10/Exiles | Warned to stay clear of 0b10 Research branches 1287 | -10/Exiles | Met EX-DEC 1352 | -10/Exiles | Discovered new exit (range 10) 1364 | -10/Exiles | Left Exiles lab with Lightpack 2.0 1364 | -10/Exiles | Entered Mines 1365 | -9/Mines | Assembled infested the area 1380 | -9/Mines | Build established: Hauler-Mutant 1580 | -9/Mines | Discovered new exit (range 6) 2141 | -9/Mines | Core integrity fell below 20% 2177 | -9/Mines | Lost 4 parts (2n2w) 2207 | -9/Mines | Learned location of Storage (-9) 2332 | -9/Mines | Learned location of 1 exit from Materials 2349 | -9/Mines | Discovered new exit (range 15) 2382 | -9/Mines | Met a Derelict who couldn't figure out how to use a Trap Extractor 2459 | -9/Mines | Entered Materials 2459 | -8/Materials | Evolved 4 slots: Propulsion x1, Utility x3 2460 | -8/Materials | Identified exit to Factory 2640 | -8/Materials | Discovered exit to Factory (range 15) 3708 | -8/Materials | Repaired Mni. Grenade Launcher 4149 | -8/Materials | Identified exit to Garrison 4149 | -8/Materials | Entered Garrison 4192 | -8/Garrison | Triggered checkpoint 4217 | -8/Garrison | Triggered checkpoint 4427 | -8/Garrison | Triggered checkpoint 4488 | -8/Garrison | Triggered checkpoint 4567 | -8/Garrison | Triggered checkpoint 4632 | -8/Garrison | Discovered new exit (range 10) 4706 | -8/Garrison | Triggered checkpoint 4897 | -8/Garrison | Discovered new exit (range 10) 4938 | -8/Garrison | Triggered checkpoint 5170 | -8/Garrison | Discovered new exit (range 9) 5197 | -8/Garrison | Installed Relay Interface Framework 5326 | -8/Garrison | Garrison Relay disabled 5502 | -8/Garrison | Garrison Relay disabled 5724 | -8/Garrison | Garrison Relay disabled 5779 | -8/Garrison | Entered Materials 5806 | -8/Materials | Identified exit to Garrison 5806 | -8/Materials | Entered Garrison 5815 | -8/Garrison | Expanded RIF knowledge: Robot Detection 5886 | -8/Garrison | Triggered checkpoint 5995 | -8/Garrison | Garrison Relay disabled 6125 | -8/Garrison | Triggered checkpoint 6183 | -8/Garrison | Triggered checkpoint 6195 | -8/Garrison | Lost 5 parts (2n1u2w) 6336 | -8/Garrison | Discovered exit to Factory (range 9) 6354 | -8/Garrison | Triggered checkpoint 6374 | -8/Garrison | Garrison Relay disabled 6424 | -8/Garrison | Entered Factory 6424 | -7/Factory | Evolved 2 slots: Utility x2 6609 | -7/Factory | Discovered new exit (range 15) 6856 | -7/Factory | Identified exit to Garrison 6856 | -7/Factory | Entered Garrison 7062 | -7/Garrison | Garrison Relay disabled 7181 | -7/Garrison | Triggered checkpoint 7240 | -7/Garrison | Destroyed 7 combat bots 7247 | -7/Garrison | Lost 7 parts (1p2n3u1w) 7474 | -7/Garrison | Triggered checkpoint 7560 | -7/Garrison | Garrison Relay disabled 7607 | -7/Garrison | Discovered new exit (range 10) 7687 | -7/Garrison | Triggered checkpoint 7771 | -7/Garrison | Discovered new exit (range 10) 7796 | -7/Garrison | Expanded RIF knowledge: Coupler Efficiency 7804 | -7/Garrison | Entered Factory 7876 | -7/Factory | Repaired Imp. Treads 8695 | -7/Factory | Build established: Bothacker-Mutant 9539 | -7/Factory | Discovered new exit (range 14) 10263 | -7/Factory | Discovered new exit (range 14) 10596 | -7/Factory | Discovered new exit (range 5) 10723 | -7/Factory | Discovered new exit (range 16) 11772 | -7/Factory | Entered another Factory area 11772 | -6/Factory | Evolved 2 slots: Propulsion x1, Utility x1 11931 | -6/Factory | Repaired Insulated Plating 12274 | -6/Factory | Identified exit to Garrison 12274 | -6/Factory | Entered Garrison 12310 | -6/Garrison | Triggered checkpoint 12394 | -6/Garrison | Spotted B-75 Beast 12551 | -6/Garrison | Garrison Relay disabled 12609 | -6/Garrison | Destroyed B-75 Beast 12629 | -6/Garrison | Lost 5 parts (1n3u1w) 12670 | -6/Garrison | Triggered checkpoint 12712 | -6/Garrison | Triggered checkpoint 12857 | -6/Garrison | Discovered new exit (range 15) 12888 | -6/Garrison | Expanded RIF knowledge: Autoassimilate 12894 | -6/Garrison | Entered Factory 12894 | -5/Factory | Evolved 2 slots: Utility x2 12943 | -5/Factory | Sucked down chute 12943 | -5/Factory | Entered Waste 13015 | -5/Waste | Spotted C-40 Crusher 13018 | -5/Waste | Spotted C-40 Crusher 13076 | -5/Waste | Spotted C-40 Crusher 13139 | -5/Waste | Spotted C-40 Crusher 13144 | -5/Waste | Spotted C-40 Crusher 13154 | -5/Waste | Spotted C-40 Crusher 13188 | -5/Waste | Discovered new exit (range 11) 13206 | -5/Waste | Entered Factory 14060 | -5/Factory | Discovered new exit (range 4) 14628 | -5/Factory | Found Hvy. Insulated Plating 14983 | -5/Factory | Fabricated Imp. Heavy Siege Treads (x2) 15513 | -5/Factory | Identified exit to Upper Caves 15513 | -5/Factory | Identified exit to Extension 16028 | -5/Factory | Lost 3 parts (2u1w) 16483 | -5/Factory | Repaired Imp. Heavy Siege Treads? 16537 | -5/Factory | Discovered new exit (range 8) 16549 | -5/Factory | Spotted B-75 Beast 16806 | -5/Factory | First assault squad dispatched 17241 | -5/Factory | Entered Upper Caves 17406 | -5/Upper Caves | Identified exit to Upper Caves 17457 | -5/Upper Caves | A Commander dispatched an escort 17465 | -5/Upper Caves | Learned location of Armory (-4) 17465 | -5/Upper Caves | Learned Armory emergency access door positions 17522 | -5/Upper Caves | Attracted the attention of an 0b10 checkpoint 17632 | -5/Upper Caves | Encountered a Warlord checkpoint 18119 | -5/Upper Caves | Entered another Upper Caves area 18119 | -5/Upper Caves | Accompanied by 1 ally 18120 | -5/Upper Caves | Commander's escort returned to base 18120 | -5/Upper Caves | Identified exit to Factory 18266 | -5/Upper Caves | Learned Factory emergency access door positions 18668 | -5/Upper Caves | Spotted B-75 Beast 18789 | -5/Upper Caves | Attracted the attention of an 0b10 outpost 19200 | -5/Upper Caves | Entered Factory 19200 | -4/Factory | Accompanied by 2 allies 19200 | -4/Factory | Evolved 2 slots: Weapon x2 19201 | -4/Factory | Identified exit to Armory 19408 | -4/Factory | Spotted B-86 Titan 19944 | -4/Factory | Discovered new exit (range 22) 20945 | -4/Factory | Lost 3 parts (1n2u) 21123 | -4/Factory | Entered Research 21123 | -3/Research | Evolved 2 slots: Utility x2 21295 | -3/Research | Spotted B-86 Titan 21518 | -3/Research | Crushed by falling debris 21878 | -3/Research | Allied Derelicts emerged from ambush trap array 21910 | -3/Research | Found Gamma Bomb Array 22036 | -3/Research | Found Prototype Processor 22137 | -3/Research | Identified Exp. Target Analyzer 22405 | -3/Research | Discovered new exit (range 16) 22809 | -3/Research | Identified exit to Research 22810 | -3/Research | Entered another Research area 22810 | -2/Research | Evolved 2 slots: Power x1, Utility x1 23188 | -2/Research | Discovered new exit (range 20) 23326 | -2/Research | Identified exit to Access 23395 | -2/Research | Build established: Bothacker-Gunner 24283 | -2/Research | Lost 3 parts (1p2u) 24752 | -2/Research | Entered Access 24752 | -1/Access | Evolved 2 slots: Utility x1, Weapon x1 25925 | -1/Access | Garrison activated, responded to threat 26005 | -1/Access | Build established: Scavenger-Gunner 26242 | -1/Access | Identified exit to Command 26502 | -1/Access | First assault squad dispatched 26969 | -1/Access | Lost 4 parts (1n3u) 27229 | -1/Access | Lost 3 parts (1n2w) 27547 | -1/Access | Spotted B-99 Colossus 27817 | -1/Access | System corruption reached 10% 27864 | -1/Access | Lost 5 parts (1p1n1u2w) 28073 | -1/Access | Lost 3 parts (1p2u) 28163 | -1/Access | Found Prototype Device 28163 | -1/Access | Identified Thermal Barrier 28203 | -1/Access | Repaired Biometal Heavy Treads 28393 | -1/Access | Build established: Scavenger-Mutant 28420 | -1/Access | Found Prototype Hackware 28450 | -1/Access | Identified Exp. System Shield 28752 | -1/Access | Spotted B-99 Colossus 28754 | -1/Access | Spotted B-99 Colossus 29049 | -1/Access | Destroyed 11 combat bots 29052 | -1/Access | Lost 4 parts (1n2u1w) 29352 | -1/Access | High security lockdown imminent 29432 | -1/Access | High security lockdown engaged 29454 | -1/Access | Destroyed B-99 Colossus 29510 | -1/Access | Core integrity fell below 50% 29518 | -1/Access | Released all parts (13) 29525 | -1/Access | Core integrity fell below 20% 29528 | -1/Access | Destroyed by B-99 Colossus with Multirail Last Messages --------------- 29518_ Released Hcp. Storage Unit. 29518_ Released Broken Adv. Armor Integrity Analyzer. 29518_ Released Adv. Target Analyzer. 29518_ Released Adv. Hacking Suite. 29518_ Released Exp. System Shield. 29518_ Released Relay Coupler [Grunt]. 29518_ Released Hcp. Matter Pod. 29518_ Released Adv. Targeting Computer. 29518_ Released Hvy. Neutron Cannon. 29521_ Penetrated by Slug. 29521_ Slug penetrates Sealed Heavy Doors. 29521_ Penetrated by Slug. 29521_ Slug penetrates Sealed Heavy Doors. 29522_ Acquired 7 matter. 29524_ Penetrated by Slug. 29524_ Slug penetrates Reinforced Barrier. 29528_ Penetrated by Slug. [Achievement: 20k Club] [Achievement: 30k Club] [Achievement: Punisher] Map ----- +----------------------------------------------------+ | ???# ????????????????????????????????# ####### | | ???# ?????????????????????????????????# #???# | | ???# ?????????????????????????????????# #???# | | ???##?????????????????????????????????# #???# | | ??????????????????????????????????????##+###???# | | ???????????????????????????????????????# #?????# | | ?????????????????????????????????????###+####### | | ?????????????????????????????????????# # | | ?????????????????????????????????????# # | | ?????????????????????????????????????# " ### | | ?????????????????????????????????????# """ + | | ?????????????????????????????????????# """ ### | | ?????????????????????????????????????# " #?? | | ?????????????????????????????????????# #?? | | ?????????????????????????????????????# #?? | | ????????????????????????????????????######+####### | | ?????????????????????????g?????? | | ???????????????????????????????? | | ????????????????????????????????????############## | | ??????????????????????????????????? | | ???????????????????????????????????? | | ????????????????????????????????????? | | ????????????????????????????????#??? | | ????????????????????????????????# | | ????????????????????????######### | | ????????????????????????"@ # | | ????????????????????????" # | | ????????????????????????" ###+############## | | ????????????????????????" g =|%! ! | | ????????????????????????" ig %=! | | ????????????????????????" !]g% | | ????????????????????????" ]]!!! | | ????????????????????????" BB!################# | | ????????????????????????" BB*###?### # | | ????????????????????????" ]]#????## # | | ????????????????????????#########????## + | | ??????????????????????????????????????# # | | ??????????????????????????????????????# # | | ??????????????????????????????????????# # | | ???????????????????????????????######## ## | | ???????????????????????????????# # # | | ???????????????????????????????### ############### | | ?????????????????????????????????????##??????????# | | ?????????????????????????????????????????????????? | | ?????????????????????????????????????????????????? | | ?????????????????????????????????????????????????? | | ????????????????????##???????????????????????????? | | ???????????######### ####????????????????????????? | | ?????????### === #????????????????????????? | | ????????? # === #????????????????????????? | +----------------------------------------------------+ Best States ------------- Heat Dissipation 180 Coolant Potential 200 Energy Generation 48 Energy Capacity 600 Matter Stores 431 Matter Capacity 500 Sight Range 22 Terrain Scan Density 10 Jamming Range 12 Power Amplification 30 EM Shielding 2 Armor Coverage 1650 Resistance: KI 25 Resistance: TH 50 Resistance: EM 30 Core Shielding 30 Propulsion Shielding 66 Utility Shielding 66 Weapon Shielding 66 Weapon Cycling 20 Phase Shifting 15 Evasion (%) 55 Targeting Accuracy 8 Target Analysis 8 Core Analysis 10 Armor Integrity Analysis 66 Recoil Reduction 4 Matter Filtering 30 Kinecelleration 40 Offensive Hacking 14 Defensive Hacking 16 Relay Coupler Types 37 Relay Coupler Value 2 Item Schematics ----------------- Imp. Propulsion Shielding | -7/Factory | Scanalyzed Hacking Suite | -7/Factory | Scanalyzed Cld. Airjet | -7/Factory | Scanalyzed Mic. Fission Core | -7/Factory | Scanalyzed Imp. Heavy Siege Treads | -5/Factory | Scanalyzed Micro-nuke Launcher | -5/Factory | Scanalyzed Imp. Kinecellerator | -5/Factory | Scanalyzed Enh. Optical Array | -5/Factory | Scanalyzed Robot Schematics ------------------ None Fabricated ------------ Imp. Heavy Siege Treads | x2 | -5/Factory Alien Tech Used ----------------- None Achievements -------------- 20k Club 30k Club Assimilation Complete Denied? Error 47 Knowing Is Half The Battle Preemptive Strike Punisher Rockin' Loadout Sniper Tank Total Silence Challenges ------------ None Game ------ Seed FactorySingularityRailgun Manual? 0 Play Time 06:10:32 Cumulative 57.0 hours Start 2020.11.03 @ 15:38:32 End 2020.11.04 @ 15:31:37 Sessions 1 Manual Loads 0 Difficulty Rogue Special Mode Halloween2020/ForbiddenLore Game No. 37 Rogue 37 Adventurer 0 Explorer 0 Win Type - Total 0 Types 0/0/0/0/0/0/0/0/0 Lore% 21 Gallery% 36 Achievement% 30 Wizard Run 0 Options --------- ASCII 1 Keyboard 1 Movement Vi Keybinds 0 Fullscreen 1 Font 16/Terminus Map View 75x55 Tactical HUD 1 Map Filters NONE Filters NONE Steam 1 RUN: 7a2d13ee-9199-40a7-8a6f-76a6fbf6f9c2